[Event "Israeli Team-ch 2023"]
[Site "Petah Tikva"]
[Date "2023.02.03"]
[Round "5.23"]
[White "Mordechai, Hanan"]
[Black "Sokolovsky, Yahli"]
[Result "0-1"]
[ECO "C45"]
[WhiteElo "2353"]
[BlackElo "2431"]
[Annotator "TA"]
[PlyCount "161"]
[EventDate "2023.01.13"]
[EventCountry "ISR"]
[SourceTitle "playchess.com"]
[Source "ChessBase"]
[SourceQuality "1"]
[TimeControl "40/5400+30:1800+30"]

{[%evp 11,161,0,0,0,0,0,0,0,0,-40,18,32,2,-64,-60,-57,-25,-77,-21,-62,-48,-64,-83,-77,-73,-82,-67,-75,-57,-67,-58,-68,-25,-58,-38,-77,-62,-85,-85,-79,-76,-77,-50,-164,-155,-187,-175,-267,-260,-266,-252,-253,-249,-259,-82,-93,-73,-81,-70,-81,-71,-60,-53,-91,-31,-27,-33,-40,-39,-51,-39,-44,-20,-25,-18,-41,-49,-48,-42,-43,-12,-42,0,-28,0,0,0,-111,-109,-116,-113,-113,-113,-115,-105,-110,-105,-121,-116,-125,-104,-106,-104,-108,-92,-139,-60,-112,-111,-127,-60,-511,-506,-501,-468,-478,-478,-475,-454,-446,-420,-420,-420,-515,-424,-1003,-782,-1147,-461,-454,-441,-441,-441,-29950,-29952,-29971,-5097,-12814,-454,-431,-337,-29960,-29956,-12648,-12648,-5605,-5601,-29983,-29983,-29985,-29985,-29985]} 1. e4 {[%emt 0:00:08]} e5 {[%emt 0:00:47]} 2. Nf3 {[%emt 0:00:05][%cal Bg1f3,Bf3d4,Bd4b3][%mdl 32]} Nc6 {[%emt 0:00:05]} 3. d4 {[%emt 0:00:03]} exd4 {[%emt 0:00:07]} 4. Nxd4 {[%emt 0:00:02]} Bc5 {[%emt 0:00:08]} 5. Nb3 {[%emt 0:00:07]} Bb6 {[%emt 0:00:04]} 6. Nc3 {[%emt 0:00:17]} Nf6 {[%emt 0:00:22]} 7. Qe2 {[%emt 0:00:48] The main line 7.Qe2 scores better than 7.Bg5. C45: Scotch Game.} a5 {[%emt 0:01:31]} 8. e5 {[%emt 0:11:02]} O-O $1 {[%emt 0:00:08]} 9. exf6 {[%emt 0:24:01] The position is equal.} a4 $1 {[%emt 0:00:17] aiming for ...d5.} 10. Be3 {[%emt 0:06:11] [#]} Bxe3 $146 {[%emt 0:17:56]} (10... axb3 $15 11. fxg7 (11. cxb3 Qxf6 12. Bxb6 cxb6 $15) 11... Re8 12. cxb3 Bxe3 13. fxe3 Nb4) ({Predecessor:} 10... axb3 11. fxg7 Re8 12. cxb3 d5 13. O-O-O d4 14. Qf3 Ra5 15. Na4 Ne5 16. Qf4 Ng6 {0-1 Serpik,I (2176)-Brown,M (2368) Southern California-ch 27th 2015 (2)}) 11. fxe3 $11 {[%emt 0:00:34] fxg7 is the strong threat.} (11. fxg7 {with more complications.} Re8 12. fxe3 axb3 13. Qf2) 11... axb3 {[%emt 0:00:26]} 12. cxb3 {[%emt 0:02:26]} (12. fxg7 Kxg7 13. cxb3 (13. Qg4+ Kh8 $14) 13... Ne5 $14) (12. Qf2 $11) 12... Qxf6 $15 {[%emt 0:02:28][%cal Od7d5]} ({Don't take} 12... gxf6 13. Qg4+ Kh8 14. Qh4 $14) 13. Qf3 {[%emt 0:05:12]} Qg6 {[%emt 0:17:39] Hoping for ...Nb4.} 14. Be2 {[%emt 0:06:29]} (14. Qg3 $11 {keeps the balance.}) 14... Ne5 {[%emt 0:02:34]} ({Black should play} 14... Qc2 $17 15. O-O Qxb2) 15. Qd5 {[%emt 0:01:45]} (15. Qg3 {simplifies} Qxg3+ 16. hxg3 c6 17. Rh4) 15... Qg5 {[%emt 0:07:41]} 16. Ne4 {[%emt 0:08:46]} Qh4+ {[%emt 0:05:49]} (16... Qxe3 $2 17. Qxe5 Kh8 18. Qc5 Qxc5 19. Nxc5 $18) 17. g3 {[%emt 0:01:31]} Qe7 {[%emt 0:00:21]} 18. O-O {[%emt 0:00:16][%cal Ob3b4]} d6 {[%emt 0:00:52]} 19. Nc3 {[%emt 0:06:40]} Bd7 {[%emt 0:11:52]} 20. e4 {[%emt 0:03:27]} Bh3 {[%emt 0:04:21]} 21. Rf2 {[%emt 0:01:03]} Rab8 {[%emt 0:14:25]} (21... Be6 {feels hotter.} 22. Qxb7 Rfb8 23. Nd5 Rxb7 24. Nxe7+ Kf8) 22. Qd2 {[%emt 0:01:08]} Be6 {[%emt 0:00:22]} 23. Rc1 {[%emt 0:01:42]} Ra8 {[%emt 0:00:35]} 24. Bd1 {[%emt 0:06:21]} h6 {[%emt 0:01:23] Black is more active.} 25. a3 {[%emt 0:01:31]} c6 {[%emt 0:01:50] Inhibits Nd5.} 26. b4 {[%emt 0:02:47]} Nc4 {[%emt 0:00:24]} 27. Qf4 {[%emt 0:00:51]} (27. Qd4 $15) 27... f5 $1 $19 {[%emt 0:01:47] Strongly threatening ...fxe4.} 28. Bb3 {[%emt 0:03:41]} fxe4 {[%emt 0:00:17][%mdl 64] Deflection} 29. Qxe4 {[%emt 0:00:06]} (29. Qh4 {keeps fighting.} Qxh4 30. gxh4) 29... Rxf2 {[%emt 0:00:36]} 30. Kxf2 {[%emt 0:00:30]} d5 {[%emt 0:00:55]} 31. Qe2 {[%emt 0:00:08] [#]} Qf6+ $1 {[%emt 0:05:07]} 32. Kg2 {[%emt 0:00:36] [#]} Nd6 {[%emt 0:02:41]} (32... Bg4 $1 $19 {[%cal Rg4e2] has better winning chances.} 33. Qf2 Qxf2+ 34. Kxf2 Nxb2) 33. Rf1 {[%emt 0:01:41]} Qe7 {[%emt 0:00:24]} 34. Kg1 {[%emt 0:01:21][%cal Ob3d5]} Re8 {[%emt 0:00:05]} 35. Re1 {[%emt 0:01:52][%cal Oc3d5]} Qf6 {[%emt 0:00:20]} 36. Qf2 {[%emt 0:00:50]} Qd8 {[%emt 0:01:06]} 37. Qf4 {[%emt 0:01:24]} Bf7 {[%emt 0:00:39]} (37... Rf8 $17 38. Qd4 Bh3) 38. Rxe8+ $15 {[%emt 0:01:00]} Nxe8 {[%emt 0:00:01]} 39. Ne2 {[%emt 0:00:32]} Qe7 {[%emt 0:00:21]} 40. Kf2 {[%emt 0:00:39]} Nd6 {[%emt 0:01:06][%cal Be8d6,Bd6c4,Bc4b2][%mdl 32]} 41. Bc2 {[%emt 0:05:37]} Nc4 {[%emt 0:04:12]} 42. Nd4 {[%emt 0:01:53]} Bh5 {[%emt 0:12:06] White must now prevent ...g5.} ({But not} 42... Nxb2 $6 43. Qb8+ Be8 44. Nf5 $15) 43. Bf5 {[%emt 0:06:59]} Nxb2 {[%emt 0:07:09]} 44. Qb8+ {[%emt 0:02:34]} Be8 $1 {[%emt 0:01:52]} 45. Kg2 {[%emt 0:04:50]} Nc4 {[%emt 0:01:44]} 46. Bg6 {[%emt 0:01:12]} Nd6 {[%emt 0:00:46]} (46... Kf8 {looks sharper.} 47. a4 Qe5 48. Qd8 Nd6) 47. a4 {[%emt 0:05:48]} Kf8 {[%emt 0:01:46]} (47... Qe5 {simplifies} 48. b5 Qxd4 49. Qxd6 Bxg6 50. Qxg6 cxb5 51. Qe6+ Kh7) 48. h4 {[%emt 0:01:32]} Qe5 {[%emt 0:01:39]} 49. Nf3 {[%emt 0:03:17]} (49. h5 $11 {remains equal.}) 49... Qe2+ $17 {[%emt 0:00:43]} 50. Kg1 {[%emt 0:01:03]} Ke7 {[%emt 0:00:44] Really sharp!} 51. Bxe8 {[%emt 0:00:58]} Qxf3 {[%emt 0:00:20]} 52. Qc7+ {[%emt 0:00:08]} Kxe8 {[%emt 0:00:13]} 53. Qxd6 {[%emt 0:00:02][%mdl 4096] Endgame KQ-KQ} Qe3+ {[%emt 0:00:56]} 54. Kh2 {[%emt 0:00:16]} Qe2+ {[%emt 0:00:22]} 55. Kg1 {[%emt 0:00:25]} Qe7 {[%emt 0:01:09]} 56. Qb8+ {[%emt 0:00:34]} Kf7 {[%emt 0:00:01]} 57. Qf4+ {[%emt 0:00:14]} Kg8 {[%emt 0:01:21]} 58. a5 {[%emt 0:00:25]} (58. Qg4 $142) 58... Qd7 {[%emt 0:01:34]} ({Black should try} 58... c5 $17 59. Qf5 cxb4 60. Qc8+ Qf8 61. Qxb7 Qc5+ 62. Kf1 Qxa5 63. Qc8+ Kf7 64. Qf5+ Kg8 65. Qc8+ Kf7 66. Qf5+ Ke8 67. Qe6+ Kf8 68. Qf5+ Ke8 69. Qg6+ Kf8 70. Qf5+ Ke7 71. Qe5+ Kf8 72. Qf5+) 59. Qd4 {[%emt 0:00:13]} (59. Kf2 $15) 59... Qe6 {[%emt 0:00:37]} 60. Qb6 {[%emt 0:00:34]} Qe7 {[%emt 0:00:01]} ({Better is} 60... Qe1+ $17 61. Kh2 Qe7) 61. a6 $2 {[%emt 0:02:07][%mdl 8192] White does not recover from this.} (61. h5 $1 $15) 61... Qe1+ $19 {[%emt 0:00:47]} 62. Kh2 {[%emt 0:00:15]} Qe2+ {[%emt 0:00:01]} 63. Kg1 {[%emt 0:00:24]} Qxa6 {[%emt 0:00:51]} 64. Qe3 {[%emt 0:00:21]} Qa1+ {[%emt 0:00:14]} 65. Kh2 {[%emt 0:00:08]} Qb2+ {[%emt 0:00:16]} 66. Kh3 {[%emt 0:00:08]} Qf6 {[%emt 0:00:58] Repels Qe6+} (66... Qxb4 $2 {is the wrong capture.} 67. Qe6+ Kf8 68. Qf5+ Ke7 69. Qe5+ Kf8 70. Qf5+ Ke7 71. Qe5+ Kf8 72. Qf5+ $19) 67. Qe8+ {[%emt 0:00:16]} Qf8 {[%emt 0:00:12]} 68. Qd7 {[%emt 0:00:12]} (68. Qe2 $142 Qf5+ 69. g4) 68... Qf7 {[%emt 0:00:06]} 69. Qd6 {[%emt 0:00:44]} Kh7 {[%emt 0:00:48]} (69... Qf1+ $142 70. Kh2 Qe2+ 71. Kg1 Qe3+ 72. Kf1 d4) 70. Kg2 {[%emt 0:00:23]} Qf5 {[%emt 0:00:32]} 71. Qc5 {[%emt 0:01:09] Wards off Qc2+} Qe4+ {[%emt 0:00:11]} 72. Kh3 {[%emt 0:00:23]} (72. Kf2 $19) 72... d4 {[%emt 0:00:40]} 73. h5 {[%emt 0:00:24]} Qd5 {[%emt 0:01:28]} (73... d3 $142 74. Qf2 Qh1+ 75. Kg4 Qd5 76. Qb2 d2 77. Qb1+ Kh8 78. Qd1 Qe6+ 79. Kf4 Qe1 80. Qg4 Qf1+ 81. Ke4 d1=Q 82. Qxd1 Qxd1 83. Ke5 Qg4 84. Kd6 Qxb4+ 85. Kd7 c5 86. Ke6 c4 87. g4 c3 88. g5 c2 89. gxh6 c1=Q 90. hxg7+ Kxg7 91. h6+ Qxh6+ 92. Ke5 Qf6+ 93. Kd5 Qf5#) 74. Kg4 {[%emt 0:00:14]} Qd7+ {[%emt 0:00:37]} (74... Qxc5 $142 75. bxc5 g6) 75. Kf3 {[%emt 0:00:49]} d3 {[%emt 0:00:27][%cal Bd4d3,Bd3d2][%mdl 32] And now ...Kg8 would win.} 76. g4 $2 {[%emt 0:00:33]} (76. Ke3 $19) 76... d2 {[%emt 0:00:23]} 77. Qc2+ {[%emt 0:00:04]} Kh8 {[%emt 0:00:23]} 78. Qd1 {[%emt 0:00:16]} Qd3+ {[%emt 0:00:07]} 79. Kf4 {[%emt 0:00:12]} Kg8 {[%emt 0:00:17]} 80. b5 {[%emt 0:01:17]} cxb5 {[%emt 0:00:08]} 81. Ke5 {[%emt 0:00:36] Weighted Error Value: White=0.20 (precise) /Black=0.16 (very precise)} 0-1

[Event "Israeli Team-ch 2023"]
[Site "Petah Tikva"]
[Date "2023.02.03"]
[Round "5.26"]
[White "Kantsler, Boris"]
[Black "Gorodetzky, David"]
[Result "0-1"]
[ECO "A31"]
[WhiteElo "2407"]
[BlackElo "2492"]
[Annotator "TA"]
[PlyCount "160"]
[EventDate "2023.01.13"]
[EventCountry "ISR"]
[SourceTitle "playchess.com"]
[Source "ChessBase"]
[SourceQuality "1"]
[TimeControl "40/5400+30:1800+30"]

{[%evp 16,160,27,-1,-2,-19,-3,-15,-10,-11,-21,-20,-15,-35,-42,-58,-44,-102,-95,-95,-82,-104,-109,-145,-60,-53,-39,-40,-51,-40,-34,-28,-18,-39,-33,-73,-38,-70,-66,-70,-70,-61,-68,-64,-53,-64,-68,-62,-34,-69,-69,-71,-61,-86,-86,-135,-37,-40,-44,-39,-22,-30,-22,-48,-42,-42,-47,-39,-46,-48,-48,-44,-47,-46,-41,-50,-47,-43,-47,-75,-64,-54,-68,-58,-47,-69,-54,-65,-61,-63,-47,-58,-52,-63,-50,-55,-55,-47,-48,-45,-46,-54,-44,-46,-50,-48,-43,-54,-30,-33,-34,-34,-31,-44,-45,-46,-46,-50,-47,-45,-18,-19,-13,-13,0,-23,-28,-24,-20,-58,-58,-58,-58,-147,-69,-110,-110,-97,-111,-774,-753,-893,-675,-5057,-5057,-1201,-1140]} 1. Nf3 {[%emt 0:01:43][%cal Bg1f3,Bf3d4,Bd4b5,Bb5c3][%mdl 32]} Nf6 {[%emt 0:01:50]} 2. d4 {[%emt 0:01:48]} c5 {[%emt 0:02:57]} 3. c4 {[%emt 0:00:52]} cxd4 {[%emt 0:00:42]} 4. Nxd4 {[%emt 0:00:01]} e5 {[%emt 0:02:47]} 5. Nb5 {[%emt 0:01:08]} d5 {[%emt 0:00:15]} 6. cxd5 {[%emt 0:00:04]} Bc5 {[%emt 0:01:08]} 7. N5c3 {[%emt 0:00:24]} O-O {[%emt 0:02:38]} 8. e3 {[%emt 0:01:31]} Bf5 {[%emt 0:06:54]} 9. Be2 {[%emt 0:02:57]} Nbd7 {[%emt 0:05:16] A31: Symmetrical English: 2 Nf3 Nf6 3 d4.} 10. Nd2 {[%emt 0:04:31]} Bb4 {[%emt 0:06:03]} 11. O-O {[%emt 0:00:29]} Bxc3 {[%emt 0:01:44][%mdl 64] Remove Defender. The position is equal.} 12. bxc3 {[%emt 0:00:02]} Nxd5 {[%emt 0:00:39][%cal Bf6d5,Bd5b6,Bb6a4,Ba4b2][%mdl 32]} 13. Bb2 {[%emt 0:07:26] aiming for e4.} N5b6 {[%emt 0:09:33]} (13... Qb6 {looks sharper.} 14. Nb3 Qg6 15. Bh5 Qg5) 14. a4 {[%emt 0:07:01]} Nc5 {[%emt 0:04:48]} 15. a5 {[%emt 0:02:17]} Nba4 {[%emt 0:02:22][%mdl 64] Discovered Attack. A dynamic duo of knights.} 16. Nc4 {[%emt 0:07:11]} (16. Nb3 $15) 16... Nxb2 $17 {[%emt 0:04:29]} 17. Nxb2 {[%emt 0:01:19] [#]} Qg5 $146 {[%emt 0:05:16] Hoping for ...Rad8. Black is more active.} ({Predecessor:} 17... Qc7 18. Bc4 Rad8 19. Bd5 Nd3 20. e4 Nxb2 21. Qb3 Rxd5 22. exd5 Nc4 23. Qb4 Bd3 24. Rfd1 e4 25. f3 f5 26. Ra4 Qe5 27. d6 exf3 28. gxf3 Qe3+ {0-1 Salokangas,H-Ornstein,A (2455) Helsinki We SKF op 1986}) 18. Qd6 {[%emt 0:09:04][%csl LRc5,LRe5] [#]} Bh3 $1 {[%emt 0:13:01][%csl Gh3][%cal Rg5g2]} 19. Bf3 {[%emt 0:02:45] [#]} (19. Qd5 Rfd8) 19... Rac8 {[%emt 0:05:05]} ({And not} 19... e4 20. Qg3 Qxg3 21. hxg3 $15) (19... Nb3 $1 $17 20. Rad1 Rad8) 20. Nd3 $1 $15 {[%emt 0:06:57]} e4 {[%emt 0:03:29]} 21. Qf4 {[%emt 0:03:29]} Qxf4 {[%emt 0:05:46]} 22. Nxf4 {[%emt 0:00:38]} exf3 {[%emt 0:00:51]} 23. Nxh3 {[%emt 0:01:57]} fxg2 {[%emt 0:02:38]} (23... Nb3 $5 {[%cal Rf3g2]} 24. Ra2 Rfd8 $11) 24. Kxg2 {[%emt 0:02:44]} (24. Rfb1 {is more complex.} Rc6 25. Nf4 Rd8 26. Rb2) 24... Rfd8 {[%emt 0:00:59]} 25. Rfd1 {[%emt 0:08:03]} Kf8 {[%emt 0:02:11]} (25... Nb3 $5 {[%cal Rb3a1]} 26. Rxd8+ Rxd8 $15) 26. Nf4 {[%emt 0:02:45]} Nb3 {[%emt 0:01:42]} 27. Rxd8+ {[%emt 0:00:40]} Rxd8 {[%emt 0:00:02][%mdl 4096] Endgame KRN-KRN} 28. Ra3 {[%emt 0:01:34]} Nc5 {[%emt 0:00:13]} 29. Ra2 {[%emt 0:02:14]} Ke7 {[%emt 0:01:18]} 30. Kf3 {[%emt 0:06:08]} Rd1 {[%emt 0:00:35]} 31. h4 {[%emt 0:09:25]} Kd6 {[%emt 0:02:17]} 32. h5 {[%emt 0:03:17]} Kc6 {[%emt 0:01:51]} 33. c4 {[%emt 0:03:26]} Nd7 {[%emt 0:03:41]} 34. Ke4 {[%emt 0:00:48]} Rh1 {[%emt 0:01:06]} 35. Kf3 {[%emt 0:00:37]} (35. Kd4 $142) 35... Rc1 {[%emt 0:00:40]} ({Better is} 35... Ne5+ $17 36. Kg2 Rd1) 36. Ne2 $1 {[%emt 0:00:23]} Rxc4 {[%emt 0:00:25]} 37. Nd4+ {[%emt 0:00:00]} Kc5 {[%emt 0:01:08]} 38. Rb2 {[%emt 0:00:25]} b6 {[%emt 0:00:36]} 39. Rb5+ {[%emt 0:00:55]} Kd6 {[%emt 0:00:02]} 40. axb6 {[%emt 0:00:24]} axb6 {[%emt 0:00:25]} 41. Rb1 {[%emt 0:31:07]} Rc5 {[%emt 0:06:25]} 42. Rg1 {[%emt 0:00:00]} g6 {[%emt 0:01:21]} 43. hxg6 {[%emt 0:00:00]} hxg6 {[%emt 0:00:54]} 44. Rb1 {[%emt 0:00:00]} Kc7 {[%emt 0:04:20]} 45. Nb5+ {[%emt 0:00:00]} Kc6 {[%emt 0:01:00]} 46. Nd4+ {[%emt 0:00:00]} Kb7 {[%emt 0:00:53]} 47. Kg3 {[%emt 0:00:00]} Nf6 {[%emt 0:02:41]} 48. Kf3 {[%emt 0:00:00] Wards off Ne4} Re5 {[%emt 0:03:08]} 49. Kf4 {[%emt 0:00:00]} Rd5 {[%emt 0:01:42]} 50. Kf3 {[%emt 0:00:00]} Rh5 {[%emt 0:02:50]} 51. Rb2 {[%emt 0:00:00]} Ne8 {[%emt 0:01:13]} 52. Rb1 {[%emt 0:00:00]} Nc7 {[%emt 0:04:07]} 53. Ke4 {[%emt 0:00:00]} Rc5 {[%emt 0:02:52]} 54. Rh1 {[%emt 0:01:06]} Nd5 {[%emt 0:00:26]} 55. Rh8 {[%emt 0:01:12]} Nf6+ {[%emt 0:00:45]} 56. Kd3 {[%emt 0:00:17]} Rc8 {[%emt 0:01:42]} 57. Rh4 {[%emt 0:01:35]} Rc7 {[%emt 0:00:08]} 58. Rh8 {[%emt 0:00:34]} Rd7 {[%emt 0:00:55]} 59. Rh1 {[%emt 0:02:10]} Ng4 {[%emt 0:01:22]} 60. Ke2 {[%emt 0:01:00]} Ne5 {[%emt 0:00:26]} 61. Rb1 {[%emt 0:01:12]} Nc6 {[%emt 0:00:25]} 62. Nb5 {[%emt 0:00:10]} Nd8 {[%emt 0:01:20]} 63. f4 {[%emt 0:00:57]} Ne6 {[%emt 0:00:16]} 64. Rb2 {[%emt 0:00:25]} Kc6 {[%emt 0:00:21]} 65. Rb1 {[%emt 0:00:18]} Rd5 {[%emt 0:00:43]} 66. Na7+ {[%emt 0:00:25]} Kb7 {[%emt 0:00:25]} 67. Nb5 {[%emt 0:00:01]} f5 {[%emt 0:01:08]} 68. Nc3 {[%emt 0:00:19]} Rd6 {[%emt 0:00:23]} 69. Nb5 {[%emt 0:01:50]} Rd5 {[%emt 0:00:23]} 70. Nc3 {[%emt 0:00:11]} Rc5 {[%emt 0:00:02]} 71. Kd3 {[%emt 0:00:27]} Rc6 {[%emt 0:00:41]} 72. Rb2 {[%emt 0:01:02]} Rd6+ {[%emt 0:00:49]} 73. Kc4 {[%emt 0:00:17]} Nc7 {[%emt 0:00:02]} 74. e4 {[%emt 0:00:35]} ({White should try} 74. Nb5 $15 Re6 75. Nxc7 Kxc7 76. Kd4) 74... Rc6+ {[%emt 0:00:26]} (74... Ne6 $17 {White must now prevent ...Rd4+.} 75. exf5 Rd4+ 76. Kb3 gxf5) 75. Kd3 {[%emt 0:00:29] [#]} Ne6 $1 {[%emt 0:00:23]} 76. exf5 {[%emt 0:00:03]} Nxf4+ {[%emt 0:00:55]} ({Much worse is} 76... gxf5 $6 77. Nd5 $11) 77. Ke3 $2 {[%emt 0:00:01][%mdl 8192] Now White is beyond hope.} (77. Kd4 $17) 77... Rxc3+ $19 {[%emt 0:00:24] Black is clearly winning.} 78. Kxf4 {[%emt 0:00:00]} Rc4+ {[%emt 0:00:25]} 79. Kg5 {[%emt 0:00:07]} gxf5 80. Kxf5 {[%emt 0:00:01]} Kc6 {[%emt 0:00:28] Weighted Error Value: White=0.10 (very precise) /Black=0.09 (flawless)} 0-1

[Event "Israeli Team-ch 2023"]
[Site "Petah Tikva"]
[Date "2023.02.03"]
[Round "5.27"]
[White "Globus, Or"]
[Black "Musyuk, Lior"]
[Result "1-0"]
[ECO "D35"]
[WhiteElo "2411"]
[BlackElo "2341"]
[Annotator "TA"]
[PlyCount "99"]
[EventDate "2023.01.13"]
[EventCountry "ISR"]
[SourceTitle "playchess.com"]
[Source "ChessBase"]
[SourceQuality "1"]
[TimeControl "40/5400+30:1800+30"]

{[%evp 15,99,12,15,28,26,23,12,14,15,19,23,31,43,28,35,35,27,22,36,32,37,34,34,41,35,15,23,23,24,23,30,18,15,22,19,36,37,6,3,0,0,0,0,0,0,0,32,18,47,50,59,59,65,62,69,43,69,65,89,89,104,94,124,131,127,122,266,270,547,531,430,224,219,209,375,372,341,317,408,399,6095,6083,4132,3656,995,949]} 1. d4 {[%emt 0:00:05]} d5 {[%emt 0:01:59]} 2. c4 {[%emt 0:01:08]} e6 {[%emt 0:01:18]} 3. Nc3 {[%emt 0:02:52]} Nf6 {[%emt 0:00:14]} 4. cxd5 {[%emt 0:00:36]} exd5 {[%emt 0:00:09]} 5. Bg5 {[%emt 0:00:05]} c6 {[%emt 0:00:11]} 6. e3 {[%emt 0:00:05]} Be7 {[%emt 0:00:17]} 7. Bd3 {[%emt 0:00:06]} h6 {[%emt 0:00:29]} 8. Bh4 {[%emt 0:00:06]} O-O {[%emt 0:00:34]} 9. Nge2 {[%emt 0:06:08] D35: Queen's Gambit Declined: Exchange Variation.} Ne4 {[%emt 0:08:23]} 10. Bxe7 {[%emt 0:03:26]} Qxe7 {[%emt 0:02:48]} 11. Bxe4 {[%emt 0:01:04] The position is equal.} dxe4 {[%emt 0:01:10]} 12. Qc2 {[%emt 0:02:28] 12.Ng3 is the modern continuation.} Bf5 {[%emt 0:01:48]} 13. O-O {[%emt 0:02:47]} Re8 {[%emt 0:04:59] [#]} 14. Rfd1 $146 {[%emt 0:16:33]} ({Predecessor:} 14. Rab1 Nd7 15. b4 Rac8 16. Qa4 a6 17. Qa5 Bh7 18. Na4 Nf6 19. Nb6 Rcd8 20. Qc5 {1-0 Milanovic,D (2502)-Osmanodja,F (2365) Pfalz op-A 8th 2017 (4)}) 14... Nd7 {[%emt 0:24:39]} 15. Ng3 {[%emt 0:12:02]} Bg6 {[%emt 0:02:48]} 16. Rac1 {[%emt 0:00:40]} Nf6 {[%emt 0:05:13]} 17. d5 {[%emt 0:06:49]} cxd5 {[%emt 0:00:49]} 18. Nxd5 {[%emt 0:00:11]} Nxd5 {[%emt 0:00:18]} 19. Rxd5 {[%emt 0:00:03]} Rad8 {[%emt 0:03:50]} 20. Rcd1 {[%emt 0:02:18]} Rxd5 {[%emt 0:01:03]} 21. Rxd5 {[%emt 0:00:04]} Rd8 {[%emt 0:01:06]} 22. Rxd8+ {[%emt 0:04:32]} Qxd8 $11 {[%emt 0:00:49][%mdl 4096] Endgame KQB-KQN} 23. h3 {[%emt 0:00:56]} Qa5 {[%emt 0:07:20]} 24. a3 {[%emt 0:04:38]} (24. Nxe4 Qxa2 25. f3 (25. Qc8+ Kh7 $17) 25... Kh7 $15) 24... Qe1+ {[%emt 0:01:46]} 25. Nf1 {[%emt 0:02:40]} Bf5 {[%emt 0:01:30] Prevents Qc8+.} 26. Qc7 {[%emt 0:04:45] Strongly threatening Qb8+.} Be6 {[%emt 0:07:04]} 27. Qxb7 {[%emt 0:09:34] Qa8+ is the strong threat.} Qc1 $1 {[%emt 0:01:31]} 28. b3 {[%emt 0:04:22] Prevents Bc4.} (28. Qxe4 $2 Bc4 29. Kh2 Qxf1 $19) 28... Qxa3 {[%emt 0:07:03]} 29. Qa8+ {[%emt 0:00:35]} Kh7 $1 {[%emt 0:00:16]} (29... Qf8 30. Qxa7 Bxb3 31. Ng3 $14) 30. Qxe4+ {[%emt 0:01:13]} g6 {[%emt 0:00:25]} 31. Qa4 {[%emt 0:04:31]} Qxb3 {[%emt 0:01:41]} (31... Qxa4 {simplifies} 32. bxa4 Kg7 33. f4 a5) 32. Qxa7 {[%emt 0:00:10]} Qd1 {[%emt 0:04:00]} 33. Qc7 {[%emt 0:02:08] Against Qc1} Bb3 {[%emt 0:03:25]} 34. f3 {[%emt 0:02:43]} Qe1 {[%emt 0:01:32]} 35. e4 {[%emt 0:01:03]} Qd1 {[%emt 0:02:37]} 36. Qc3 {[%emt 0:01:34]} Bc2 {[%emt 0:02:00] White must now prevent ...Bd3.} 37. Qd2 {[%emt 0:00:16] Repels Bd3} Qb1 {[%emt 0:00:26]} 38. Kf2 {[%emt 0:00:15]} Bd3 {[%emt 0:00:12]} 39. Ne3 {[%emt 0:00:42]} h5 {[%emt 0:01:32]} 40. Nd5 {[%emt 0:02:05]} h4 {[%emt 0:00:40] Black cannot hold the game after this.} (40... Qc2 $16 41. Qxc2 Bxc2) 41. Qf4 $1 $18 {[%emt 0:32:42][%csl LRf7,LRh4]} Qf1+ $2 {[%emt 0:01:37]} (41... Kg8 42. Qxh4 Qf1+ 43. Kg3 Qe1+ 44. Kg4 f5+ 45. Kg5 Qxh4+ 46. Kxh4 fxe4 47. fxe4 Kg7) 42. Ke3 {[%emt 0:00:00]} Kg8 {[%emt 0:01:19]} 43. Qxh4 {[%emt 0:00:00]} (43. Qb8+ $142 Kg7 44. Qe5+ Kg8 45. Nf6+ Kg7 46. Nd5+ Kg8 47. Nf6+ Kg7 48. Nh5+ {[%mdl 64] Discovered Attack (Double check)} Kf8 49. Qb8+ Ke7 50. Qc7+ Ke8 51. Qb8+ Ke7 52. Qc7+ Ke8 53. Nf6+ Kf8 54. Nd7+ Ke8 55. Nf6+ Kf8 56. Qd8+ Kg7 57. Nd7 (57. Qxd3 Qg1+ 58. Ke2 Qxg2+ 59. Ke3 Qg1+ 60. Kf4 Qg3+ 61. Ke3 Qg1+ 62. Kf4 Qg3+ 63. Ke3 Qg1+ $11) 57... Qe1+ 58. Kxd3 Qb1+ 59. Kc4 Qc2+ 60. Kd4 Qd2+ 61. Ke5 Qb2+ 62. Kd6 Qb4+ 63. Kc6) 43... Bc4 {[%emt 0:01:32]} 44. Qd8+ $1 {[%emt 0:00:00]} ({Don't take} 44. Nf6+ $6 Kg7 $16) 44... Kh7 $2 {[%emt 0:00:37]} (44... Kg7 45. Qf6+ Kg8) 45. Nf6+ {[%emt 0:00:00]} Kg7 {[%emt 0:00:33] [#]} 46. Ne8+ $1 {[%emt 0:00:00]} ({Stronger than} 46. Kf4 Qc1+ 47. Kg4 Be6+ 48. Kh4 Qh6+ 49. Kg3 Qg5+ 50. Kf2 Qc5+ 51. Ke2 Qc2+ 52. Ke3 (52. Kf1 Bc4+ 53. Kg1 Qc1+ 54. Kf2 Qb2+ {[%mdl 64] Skewer, Double Attack} 55. Ke3 Qc3+ 56. Kf2 Qxf6 $17) 52... Qc3+ 53. Ke2 Bc4+ 54. Kf2 Qxf6 55. Qxf6+ Kxf6 $17) 46... Kh7 {[%emt 0:00:43] [#]} 47. Qf6 $1 {[%emt 0:00:00][%csl Ge8][%cal Rf6g7]} Qe2+ $2 {[%emt 0:00:53]} (47... Qe1+ 48. Kf4 Qc1+ 49. Kg3 Qh6) 48. Kf4 {[%emt 0:00:00][%csl Ge8][%cal Rf6g7] White is clearly winning.} Qd2+ {[%emt 0:00:45]} 49. Kg3 {[%emt 0:00:00][%csl Ge8][%cal Rf6g7]} Qh6 {[%emt 0:00:11] Inhibits Qg7+.} 50. Nd6 {[%emt 0:00:00][%csl LRc4,LRf7] Weighted Error Value: White=0.07 (flawless) /Black=0.25 (precise)} 1-0